[Event "Live Chess"]
[Site "Chess.com"]
[Date "2024.06.02"]
[Round "-"]
[White "CheckThis4"]
[Black "Bradfield133"]
[Result "1-0"]
[WhiteElo "2695"]
[BlackElo "1884"]
[TimeControl "300"]
[EndTime "1:37:55 PDT"]
[Termination "CheckThis4 won on time"]

1. d4 {[%clk 0:04:55.5]} 1... d6 {[%clk 0:04:54.9]} 2. e4 {[%clk 0:04:53.6]}
2... g6 {[%clk 0:04:52.9]} 3. Nc3 {[%clk 0:04:52.5]} 3... Bg7 {[%clk 0:04:52.1]}
4. Be3 {[%clk 0:04:51.4]} 4... Nd7 {[%clk 0:04:50.9]} 5. Qd2 {[%clk 0:04:50.1]}
5... c5 {[%clk 0:04:49.1]} 6. Nf3 {[%clk 0:04:46.1]} 6... cxd4 {[%clk
0:04:46.7]} 7. Nxd4 {[%clk 0:04:44.7]} 7... Ngf6 {[%clk 0:04:45.7]} 8. f3 {[%clk
0:04:43.2]} 8... O-O {[%clk 0:04:39.3]} 9. Bc4 {[%clk 0:04:38.1]} 9... Nb6
{[%clk 0:04:26.9]} 10. Bb3 {[%clk 0:04:36.5]} 10... d5 {[%clk 0:04:21.1]} 11. e5
{[%clk 0:04:30.6]} 11... Ne8 {[%clk 0:04:06.1]} 12. Bh6 {[%clk 0:04:22.1]} 12...
Bxe5 {[%clk 0:03:50.8]} 13. Bxf8 {[%clk 0:04:19.8]} 13... Kxf8 {[%clk
0:03:50.1]} 14. O-O-O {[%clk 0:04:11.4]} 14... Kg8 {[%clk 0:03:34.1]} 15. Kb1
{[%clk 0:04:09]} 15... Nd6 {[%clk 0:03:22.6]} 16. Rhe1 {[%clk 0:03:53.1]} 16...
Bf6 {[%clk 0:03:12.9]} 17. f4 {[%clk 0:03:26.6]} 17... Bg4 {[%clk 0:02:50]} 18.
Nf3 {[%clk 0:03:25]} 18... e6 {[%clk 0:02:44.6]} 19. Rc1 {[%clk 0:02:33.7]}
19... Bxf3 {[%clk 0:02:31.6]} 20. gxf3 {[%clk 0:02:33.6]} 20... Ndc4 {[%clk
0:02:30.4]} 21. Qd3 {[%clk 0:02:28.1]} 21... Qc7 {[%clk 0:02:22.1]} 22. Nb5
{[%clk 0:02:22.5]} 22... Qxf4 {[%clk 0:02:17.9]} 23. c3 {[%clk 0:02:15.5]} 23...
a6 {[%clk 0:01:44.7]} 24. Nd4 {[%clk 0:02:13.5]} 24... Nd2+ {[%clk 0:01:31.1]}
25. Kc2 {[%clk 0:01:59.3]} 25... Nxb3 {[%clk 0:01:29.4]} 26. axb3 {[%clk
0:01:57.8]} 26... Qxh2+ {[%clk 0:01:27.4]} 27. Re2 {[%clk 0:01:56.8]} 27... Qf4
{[%clk 0:01:18]} 28. Kb1 {[%clk 0:01:52.9]} 28... Rc8 {[%clk 0:01:05.8]} 29.
Rec2 {[%clk 0:01:49.6]} 29... Bxd4 {[%clk 0:00:53.4]} 30. cxd4 {[%clk
0:01:34.2]} 30... Rxc2 {[%clk 0:00:51.1]} 31. Rxc2 {[%clk 0:01:33.4]} 31... Kg7
{[%clk 0:00:39.3]} 32. Qc3 {[%clk 0:01:27.5]} 32... h5 {[%clk 0:00:28.7]} 33.
Qb4 {[%clk 0:01:25.6]} 33... Nd7 {[%clk 0:00:18.7]} 34. Qe7 {[%clk 0:01:23]}
34... Nf8 {[%clk 0:00:11.2]} 35. Qxb7 {[%clk 0:01:16.2]} 35... Qxf3 {[%clk
0:00:09.4]} 36. Qxa6 {[%clk 0:01:08.9]} 36... h4 {[%clk 0:00:08]} 37. Qe2 {[%clk
0:01:04.7]} 37... Qxe2 {[%clk 0:00:06.1]} 38. Rxe2 {[%clk 0:01:04.6]} 38... g5
{[%clk 0:00:04.6]} 39. b4 {[%clk 0:01:03.8]} 39... g4 {[%clk 0:00:03.4]} 40. b5
{[%clk 0:01:02.9]} 40... Nd7 {[%clk 0:00:02.3]} 41. Kc2 {[%clk 0:00:58.5]} 41...
g3 {[%clk 0:00:00.8]} 42. Rg2 {[%clk 0:00:56.6]} 1-0

[Event "Live Chess"]
[Site "Chess.com"]
[Date "2024.06.02"]
[Round "-"]
[White "jellhhggffhjjjjjj"]
[Black "Tunyk_Vladyslav"]
[Result "0-1"]
[WhiteElo "402"]
[BlackElo "2400"]
[TimeControl "300"]
[EndTime "1:39:08 PDT"]
[Termination "Tunyk_Vladyslav won by checkmate"]

1. d3 {[%clk 0:04:54.1]} 1... e6 {[%clk 0:04:59.9]} 2. e4 {[%clk 0:04:53.2]}
2... d5 {[%clk 0:04:59.8]} 3. Nc3 {[%clk 0:04:51.5]} 3... Bb4 {[%clk 0:04:58.4]}
4. Bd2 {[%clk 0:04:49.8]} 4... Ne7 {[%clk 0:04:56.8]} 5. a3 {[%clk 0:04:49.3]}
5... Bd6 {[%clk 0:04:55.3]} 6. g3 {[%clk 0:04:40.3]} 6... O-O {[%clk 0:04:53.7]}
7. Bg2 {[%clk 0:04:39.6]} 7... b6 {[%clk 0:04:53.3]} 8. Nf3 {[%clk 0:04:39]}
8... Bb7 {[%clk 0:04:52.1]} 9. Qe2 {[%clk 0:04:35.7]} 9... c5 {[%clk 0:04:49.3]}
10. Nd1 {[%clk 0:04:30.8]} 10... Nbc6 {[%clk 0:04:45]} 11. Ne3 {[%clk 0:04:30]}
11... a5 {[%clk 0:04:28.3]} 12. O-O-O {[%clk 0:04:27.6]} 12... b5 {[%clk
0:04:26.1]} 13. exd5 {[%clk 0:04:11.6]} 13... exd5 {[%clk 0:04:26]} 14. d4
{[%clk 0:04:06.9]} 14... c4 {[%clk 0:04:16.8]} 15. Bc3 {[%clk 0:03:55.7]} 15...
b4 {[%clk 0:04:13.6]} 16. axb4 {[%clk 0:03:54.4]} 16... axb4 {[%clk 0:04:13.5]}
17. Bxb4 {[%clk 0:03:29.5]} 17... Bxb4 {[%clk 0:04:11.3]} 18. c3 {[%clk
0:03:28.4]} 18... Bd6 {[%clk 0:04:06.1]} 19. Rhe1 {[%clk 0:03:25.1]} 19... Qa5
{[%clk 0:04:04.8]} 20. Kc2 {[%clk 0:03:24.2]} 20... Qa4+ {[%clk 0:04:03.9]} 21.
Kd2 {[%clk 0:03:19.7]} 21... Qb3 {[%clk 0:04:03]} 22. Rb1 {[%clk 0:03:16.3]}
22... Ra2 {[%clk 0:04:01.6]} 23. Qd1 {[%clk 0:03:14.6]} 23... Rxb2+ {[%clk
0:04:00.3]} 24. Nc2 {[%clk 0:03:09.9]} 24... Nb4 {[%clk 0:03:51]} 25. Rxb2
{[%clk 0:03:07.3]} 25... Qxb2 {[%clk 0:03:49.2]} 26. Qb1 {[%clk 0:02:54.3]}
26... Qxb1 {[%clk 0:03:43.1]} 27. Rxb1 {[%clk 0:02:52.5]} 27... Nxc2 {[%clk
0:03:43]} 28. Kxc2 {[%clk 0:02:50.9]} 28... Bc6 {[%clk 0:03:40.8]} 29. Ne5
{[%clk 0:02:45.7]} 29... Bxe5 {[%clk 0:03:37.9]} 30. dxe5 {[%clk 0:02:43.6]}
30... g6 {[%clk 0:03:36.4]} 31. Re1 {[%clk 0:02:40.9]} 31... Ra8 {[%clk
0:03:34.7]} 32. e6 {[%clk 0:02:36.8]} 32... Ra2+ {[%clk 0:03:33.7]} 33. Kd1
{[%clk 0:02:34.8]} 33... Rxf2 {[%clk 0:03:33.6]} 34. exf7+ {[%clk 0:02:32.7]}
34... Kxf7 {[%clk 0:03:33.5]} 35. Rg1 {[%clk 0:02:25.6]} 35... Nf5 {[%clk
0:03:31.4]} 36. g4 {[%clk 0:02:16.2]} 36... Rxg2 {[%clk 0:03:30.2]} 37. Rxg2
{[%clk 0:02:11.6]} 37... Ne3+ {[%clk 0:03:29]} 38. Ke2 {[%clk 0:02:09.7]} 38...
Nxg2 {[%clk 0:03:28.9]} 39. Kf2 {[%clk 0:02:09.1]} 39... Nf4 {[%clk 0:03:28]}
40. Ke3 {[%clk 0:02:08]} 40... Nd3 {[%clk 0:03:27.9]} 41. Kd4 {[%clk 0:02:06.7]}
41... Ke6 {[%clk 0:03:27.8]} 42. g5 {[%clk 0:02:04.9]} 42... Nb2 {[%clk
0:03:25.2]} 43. h4 {[%clk 0:02:00.1]} 43... Nd3 {[%clk 0:03:24.7]} 44. Ke3
{[%clk 0:01:52.5]} 44... Ke5 {[%clk 0:03:24.6]} 45. Kd2 {[%clk 0:01:50]} 45...
d4 {[%clk 0:03:24]} 46. cxd4+ {[%clk 0:01:48.3]} 46... Kxd4 {[%clk 0:03:23.9]}
47. Kc2 {[%clk 0:01:46.6]} 47... c3 {[%clk 0:03:23.8]} 48. Kd1 {[%clk
0:01:44.1]} 48... Ba4+ {[%clk 0:03:23.3]} 49. Ke2 {[%clk 0:01:40.3]} 49... c2
{[%clk 0:03:21.9]} 50. Kf3 {[%clk 0:01:38.4]} 50... c1=Q {[%clk 0:03:21.8]} 51.
Kg3 {[%clk 0:01:36.9]} 51... Qf4+ {[%clk 0:03:21]} 52. Kh3 {[%clk 0:01:35.5]}
52... Bd7+ {[%clk 0:03:20.6]} 53. Kg2 {[%clk 0:01:33.3]} 53... Qf2+ {[%clk
0:03:19.8]} 54. Kh1 {[%clk 0:01:29.9]} 54... Bc6# {[%clk 0:03:19.7]} 0-1

[Event "Live Chess"]
[Site "Chess.com"]
[Date "2024.06.02"]
[Round "-"]
[White "nyclone"]
[Black "NeilDruggan73"]
[Result "1-0"]
[WhiteElo "1148"]
[BlackElo "1696"]
[TimeControl "300"]
[EndTime "1:39:35 PDT"]
[Termination "nyclone won by checkmate"]

1. e4 {[%clk 0:04:59.5]} 1... d6 {[%clk 0:04:59.1]} 2. Nc3 {[%clk 0:04:57.6]}
2... Nf6 {[%clk 0:04:58.4]} 3. Bc4 {[%clk 0:04:53.3]} 3... c6 {[%clk 0:04:53.8]}
4. Nf3 {[%clk 0:04:50.8]} 4... Nxe4 {[%clk 0:04:52.4]} 5. Nxe4 {[%clk
0:04:48.3]} 5... d5 {[%clk 0:04:51.5]} 6. Bxd5 {[%clk 0:04:46]} 6... cxd5 {[%clk
0:04:49.9]} 7. Nc3 {[%clk 0:04:45]} 7... g6 {[%clk 0:04:49]} 8. d4 {[%clk
0:04:44.4]} 8... Bg7 {[%clk 0:04:47.7]} 9. O-O {[%clk 0:04:41]} 9... Nc6 {[%clk
0:04:46.8]} 10. Be3 {[%clk 0:04:37.9]} 10... Bg4 {[%clk 0:04:45.7]} 11. Re1
{[%clk 0:04:36.6]} 11... Qb6 {[%clk 0:04:42.4]} 12. Nxd5 {[%clk 0:04:25.2]}
12... Qxb2 {[%clk 0:04:39.7]} 13. Rb1 {[%clk 0:04:14.3]} 13... Qxa2 {[%clk
0:04:23.2]} 14. Nc7+ {[%clk 0:04:11.7]} 14... Kf8 {[%clk 0:04:22.1]} 15. Nxa8
{[%clk 0:04:08.9]} 15... f6 {[%clk 0:04:15.1]} 16. Nc7 {[%clk 0:03:56.5]} 16...
Kf7 {[%clk 0:04:13.9]} 17. Rxb7 {[%clk 0:03:47.3]} 17... Rd8 {[%clk 0:04:07]}
18. c3 {[%clk 0:03:20.2]} 18... e5 {[%clk 0:03:55.8]} 19. Bg5 {[%clk 0:03:09.6]}
19... fxg5 {[%clk 0:03:52.3]} 20. Nxg5+ {[%clk 0:03:05.8]} 20... Kg8 {[%clk
0:03:49.3]} 21. Qxg4 {[%clk 0:03:01.9]} 21... Qd2 {[%clk 0:03:39.1]} 22. Qe6+
{[%clk 0:02:40.4]} 22... Kh8 {[%clk 0:03:36.9]} 23. Nf7+ {[%clk 0:02:37]} 23...
Kg8 {[%clk 0:03:36]} 24. Nh6+ {[%clk 0:02:18.5]} 24... Kh8 {[%clk 0:03:33]} 25.
Qg8+ {[%clk 0:02:12.8]} 25... Rxg8 {[%clk 0:03:29.5]} 26. Nf7# {[%clk
0:02:01.4]} 1-0

[Event "Live Chess"]
[Site "Chess.com"]
[Date "2024.06.02"]
[Round "-"]
[White "Ferrarifan27"]
[Black "RockTroll"]
[Result "0-1"]
[WhiteElo "2141"]
[BlackElo "2178"]
[TimeControl "300"]
[EndTime "1:39:48 PDT"]
[Termination "RockTroll won by resignation"]

1. e4 {[%clk 0:04:58.4]} 1... c6 {[%clk 0:04:57.8]} 2. d4 {[%clk 0:04:55.6]}
2... d5 {[%clk 0:04:57]} 3. e5 {[%clk 0:04:54.3]} 3... Bf5 {[%clk 0:04:55.4]} 4.
h4 {[%clk 0:04:47]} 4... h5 {[%clk 0:04:53.9]} 5. Bg5 {[%clk 0:04:44.7]} 5...
Qb6 {[%clk 0:04:51.4]} 6. Bd3 {[%clk 0:04:42.7]} 6... Bxd3 {[%clk 0:04:49.7]} 7.
Qxd3 {[%clk 0:04:40.2]} 7... e6 {[%clk 0:04:49.2]} 8. Nc3 {[%clk 0:04:38.8]}
8... Qa6 {[%clk 0:04:48.3]} 9. O-O-O {[%clk 0:04:34.4]} 9... Qxd3 {[%clk
0:04:47.5]} 10. Rxd3 {[%clk 0:04:33.5]} 10... c5 {[%clk 0:04:46.9]} 11. Nb5
{[%clk 0:04:30.6]} 11... Na6 {[%clk 0:04:44.6]} 12. Ra3 {[%clk 0:04:29.5]} 12...
Kd7 {[%clk 0:04:38.3]} 13. dxc5 {[%clk 0:04:21.8]} 13... Bxc5 {[%clk 0:04:35.6]}
14. Rf3 {[%clk 0:04:20.7]} 14... Rf8 {[%clk 0:04:18.9]} 15. Ne2 {[%clk
0:04:18.3]} 15... f6 {[%clk 0:04:18.1]} 16. exf6 {[%clk 0:04:13.9]} 16... gxf6
{[%clk 0:04:17.3]} 17. Be3 {[%clk 0:04:12.5]} 17... Bxe3+ {[%clk 0:04:14.8]} 18.
Rxe3 {[%clk 0:04:11.5]} 18... Ra8 {[%clk 0:04:12]} 19. Rd1 {[%clk 0:04:05.2]}
19... Ne7 {[%clk 0:04:10.1]} 20. Nbd4 {[%clk 0:03:54.2]} 20... e5 {[%clk
0:04:04.5]} 21. Nf3 {[%clk 0:03:52.9]} 21... Kc6 {[%clk 0:03:57.9]} 22. Rc3+
{[%clk 0:03:51.4]} 22... Kd6 {[%clk 0:03:52.1]} 23. Kb1 {[%clk 0:03:48.7]} 23...
Rac8 {[%clk 0:03:49.1]} 24. Rb3 {[%clk 0:03:46.8]} 24... Nc5 {[%clk 0:03:47.9]}
25. Rb4 {[%clk 0:03:42.5]} 25... a5 {[%clk 0:03:43]} 26. Rb5 {[%clk 0:03:37.8]}
26... Nc6 {[%clk 0:03:32.6]} 27. Ng3 {[%clk 0:03:04]} 27... Rc7 {[%clk
0:03:07.7]} 28. Nf5+ {[%clk 0:03:01.2]} 28... Ke6 {[%clk 0:03:06.9]} 29. Rxc5
{[%clk 0:03:00]} 29... Kxf5 {[%clk 0:03:05.7]} 30. Rdxd5 {[%clk 0:02:52.6]}
30... Rg8 {[%clk 0:02:59.9]} 31. g3 {[%clk 0:02:48.2]} 31... Rcc8 {[%clk
0:02:49.7]} 32. Rd7 {[%clk 0:02:33]} 32... b6 {[%clk 0:02:41.5]} 33. Rc3 {[%clk
0:02:30.9]} 33... Nb4 {[%clk 0:02:37.2]} 34. Rxc8 {[%clk 0:02:24]} 34... Rxc8
{[%clk 0:02:36]} 35. c3 {[%clk 0:02:23.4]} 35... Na6 {[%clk 0:02:33.7]} 36. Rd6
{[%clk 0:02:15.9]} 36... Rb8 {[%clk 0:02:32.6]} 37. Kc2 {[%clk 0:02:13.3]} 37...
Nc5 {[%clk 0:02:31.8]} 38. Nd2 {[%clk 0:02:04.6]} 38... e4 {[%clk 0:02:19.6]}
39. Rd5+ {[%clk 0:02:02]} 39... Ke6 {[%clk 0:02:18.5]} 40. Rxh5 {[%clk
0:02:00.4]} 40... f5 {[%clk 0:02:15]} 41. Rh6+ {[%clk 0:01:58.8]} 41... Kd5
{[%clk 0:02:09.3]} 42. c4+ {[%clk 0:01:54.1]} 42... Ke5 {[%clk 0:02:07.4]} 43.
b3 {[%clk 0:01:45.9]} 43... Nd3 {[%clk 0:02:05.7]} 44. f4+ {[%clk 0:01:36.3]}
44... Kd4 {[%clk 0:02:04.7]} 45. Rd6+ {[%clk 0:01:33.2]} 45... Ke3 {[%clk
0:02:03.8]} 46. a3 {[%clk 0:01:18.9]} 46... Kf2 {[%clk 0:02:02.4]} 47. g4 {[%clk
0:01:15]} 47... Ne1+ {[%clk 0:01:58]} 48. Kd1 {[%clk 0:01:07.1]} 48... e3 {[%clk
0:01:57.4]} 49. Nb1 {[%clk 0:01:00.3]} 49... e2+ {[%clk 0:01:55.6]} 50. Kc1
{[%clk 0:00:50.6]} 50... Nd3+ {[%clk 0:01:53.2]} 51. Rxd3 {[%clk 0:00:47.7]}
51... e1=Q+ {[%clk 0:01:52.2]} 52. Kc2 {[%clk 0:00:47.2]} 52... Re8 {[%clk
0:01:48.4]} 53. gxf5 {[%clk 0:00:43.5]} 53... Re2+ {[%clk 0:01:46.9]} 54. Nd2
{[%clk 0:00:41.6]} 54... Qa1 {[%clk 0:01:40.3]} 55. a4 {[%clk 0:00:38.8]} 55...
Re1 {[%clk 0:01:30.7]} 56. Ne4+ {[%clk 0:00:37.8]} 56... Kg2 {[%clk 0:01:28.9]}
57. Rd2+ {[%clk 0:00:35.8]} 57... Kh3 {[%clk 0:01:27.3]} 58. f6 {[%clk
0:00:28.8]} 58... Rxe4 {[%clk 0:01:24.4]} 59. f7 {[%clk 0:00:26.1]} 59... Rxf4
{[%clk 0:01:23.8]} 60. Rd3+ {[%clk 0:00:23.2]} 60... Kxh4 {[%clk 0:01:21.8]} 61.
Rd2 {[%clk 0:00:20.1]} 61... Qa2+ {[%clk 0:01:20]} 62. Kc3 {[%clk 0:00:18.6]}
62... Qxd2+ {[%clk 0:01:19.6]} 63. Kxd2 {[%clk 0:00:17.4]} 63... Rxf7 {[%clk
0:01:19.5]} 0-1

[Event "Live Chess"]
[Site "Chess.com"]
[Date "2024.06.02"]
[Round "-"]
[White "Crowded_House"]
[Black "Dhaydon19"]
[Result "0-1"]
[WhiteElo "1669"]
[BlackElo "2636"]
[TimeControl "300"]
[EndTime "1:39:51 PDT"]
[Termination "Dhaydon19 won by resignation"]

1. d4 {[%clk 0:04:54]} 1... c6 {[%clk 0:04:59.9]} 2. c3 {[%clk 0:04:51.1]} 2...
d5 {[%clk 0:04:59.8]} 3. Bg5 {[%clk 0:04:50.1]} 3... Nf6 {[%clk 0:04:59.6]} 4.
Nd2 {[%clk 0:04:47.7]} 4... Bf5 {[%clk 0:04:58.5]} 5. e3 {[%clk 0:04:46.3]} 5...
e6 {[%clk 0:04:57.3]} 6. Ngf3 {[%clk 0:04:44.6]} 6... Nbd7 {[%clk 0:04:56]} 7.
Nb3 {[%clk 0:04:43.7]} 7... Bd6 {[%clk 0:04:54.8]} 8. Bd3 {[%clk 0:04:42.7]}
8... Bg6 {[%clk 0:04:53.6]} 9. Qc2 {[%clk 0:04:41.4]} 9... Qc7 {[%clk
0:04:51.9]} 10. O-O {[%clk 0:04:38.9]} 10... Ne4 {[%clk 0:04:50.7]} 11. Nbd2
{[%clk 0:04:26.4]} 11... Nxg5 {[%clk 0:04:48.4]} 12. Nxg5 {[%clk 0:04:24.3]}
12... Bxh2+ {[%clk 0:04:46.2]} 13. Kh1 {[%clk 0:04:23.9]} 13... Bd6 {[%clk
0:04:45]} 14. Ngf3 {[%clk 0:04:12.9]} 14... Nf6 {[%clk 0:04:42.8]} 15. Rfe1
{[%clk 0:04:05.7]} 15... Ng4 {[%clk 0:04:35.5]} 16. Kg1 {[%clk 0:03:58.1]} 16...
f5 {[%clk 0:04:31]} 17. Kf1 {[%clk 0:03:39.1]} 17... h5 {[%clk 0:04:20.1]} 18.
Ng5 {[%clk 0:03:35.9]} 18... Qe7 {[%clk 0:04:17.3]} 19. Ngf3 {[%clk 0:03:32.8]}
19... h4 {[%clk 0:04:15.8]} 20. Ke2 {[%clk 0:03:25.7]} 20... O-O-O {[%clk
0:04:11.7]} 21. Rh1 {[%clk 0:03:22.3]} 21... Bf7 {[%clk 0:04:09]} 22. Rxh4
{[%clk 0:03:14.8]} 22... Rxh4 {[%clk 0:04:06.9]} 23. Nxh4 {[%clk 0:03:13.4]}
23... Qxh4 {[%clk 0:04:06.6]} 0-1

[Event "Live Chess"]
[Site "Chess.com"]
[Date "2024.06.02"]
[Round "-"]
[White "RichardABates"]
[Black "booktrunk"]
[Result "1-0"]
[WhiteElo "2370"]
[BlackElo "1512"]
[TimeControl "300"]
[EndTime "1:39:57 PDT"]
[Termination "RichardABates won by checkmate"]

1. d4 {[%clk 0:04:57.6]} 1... b6 {[%clk 0:04:58]} 2. e4 {[%clk 0:04:56.1]} 2...
Bb7 {[%clk 0:04:55.6]} 3. Bd3 {[%clk 0:04:55.3]} 3... e6 {[%clk 0:04:50.7]} 4.
Nf3 {[%clk 0:04:54]} 4... h6 {[%clk 0:04:47.9]} 5. O-O {[%clk 0:04:52.4]} 5...
Be7 {[%clk 0:04:43.5]} 6. c4 {[%clk 0:04:46.6]} 6... d6 {[%clk 0:04:42.5]} 7.
Nc3 {[%clk 0:04:45.1]} 7... Nd7 {[%clk 0:04:19.5]} 8. Qe2 {[%clk 0:04:39]} 8...
c5 {[%clk 0:04:15]} 9. d5 {[%clk 0:04:37.5]} 9... Ne5 {[%clk 0:04:10.8]} 10.
Nxe5 {[%clk 0:04:35.6]} 10... dxe5 {[%clk 0:04:09.8]} 11. f4 {[%clk 0:04:33]}
11... exd5 {[%clk 0:04:08.4]} 12. Nxd5 {[%clk 0:04:26.9]} 12... Bxd5 {[%clk
0:04:06.1]} 13. cxd5 {[%clk 0:04:25.7]} 13... exf4 {[%clk 0:04:04.2]} 14. Bb5+
{[%clk 0:04:21.4]} 14... Kf8 {[%clk 0:04:01.7]} 15. Bxf4 {[%clk 0:04:20]} 15...
Bg5 {[%clk 0:03:59.4]} 16. Bg3 {[%clk 0:04:10.2]} 16... a6 {[%clk 0:03:54.7]}
17. Bc6 {[%clk 0:04:08.2]} 17... Rc8 {[%clk 0:03:52.7]} 18. Qh5 {[%clk
0:04:04.4]} 18... Nf6 {[%clk 0:03:47.1]} 19. Qf3 {[%clk 0:04:02.8]} 19... Qe7
{[%clk 0:03:36]} 20. e5 {[%clk 0:04:01]} 20... Nh7 {[%clk 0:03:31.7]} 21. d6
{[%clk 0:03:57.4]} 21... Qd8 {[%clk 0:03:26.2]} 22. Qxf7# {[%clk 0:03:55.2]} 1-0

[Event "Live Chess"]
[Site "Chess.com"]
[Date "2024.06.02"]
[Round "-"]
[White "ProfessorChess101"]
[Black "AlexanderMatlak"]
[Result "1-0"]
[WhiteElo "2727"]
[BlackElo "2408"]
[TimeControl "300"]
[EndTime "1:40:16 PDT"]
[Termination "ProfessorChess101 won by resignation"]

1. d4 {[%clk 0:04:56.5]} 1... Nf6 {[%clk 0:04:58.6]} 2. c4 {[%clk 0:04:55.4]}
2... c5 {[%clk 0:04:57.4]} 3. Nf3 {[%clk 0:04:53]} 3... cxd4 {[%clk 0:04:56.1]}
4. Nxd4 {[%clk 0:04:52.9]} 4... b6 {[%clk 0:04:55.5]} 5. Nc3 {[%clk 0:04:50.3]}
5... Bb7 {[%clk 0:04:54.7]} 6. Bg5 {[%clk 0:04:48.7]} 6... d6 {[%clk 0:04:53.5]}
7. Bxf6 {[%clk 0:04:46.2]} 7... gxf6 {[%clk 0:04:53.4]} 8. e4 {[%clk 0:04:42.8]}
8... Nd7 {[%clk 0:04:44.8]} 9. Nd5 {[%clk 0:04:24.8]} 9... h5 {[%clk 0:04:28.3]}
10. Be2 {[%clk 0:04:17.7]} 10... h4 {[%clk 0:04:25.3]} 11. Ne6 {[%clk
0:04:07.7]} 11... Bxd5 {[%clk 0:04:15.5]} 12. Nxd8 {[%clk 0:03:20.7]} 12... Bxe4
{[%clk 0:04:14.2]} 13. Nxf7 {[%clk 0:03:20.1]} 13... Kxf7 {[%clk 0:04:08.9]} 14.
Bh5+ {[%clk 0:03:19.3]} 14... Rxh5 {[%clk 0:04:03.1]} 15. Qxh5+ {[%clk
0:03:17.5]} 15... Bg6 {[%clk 0:04:03]} 16. Qd5+ {[%clk 0:03:16.6]} 1-0

[Event "Live Chess"]
[Site "Chess.com"]
[Date "2024.06.02"]
[Round "-"]
[White "seasidecastle27"]
[Black "SergiiA"]
[Result "0-1"]
[WhiteElo "1939"]
[BlackElo "1552"]
[TimeControl "300"]
[EndTime "1:40:28 PDT"]
[Termination "SergiiA won by resignation"]

1. d4 {[%clk 0:04:56.9]} 1... d6 {[%clk 0:04:58]} 2. Nf3 {[%clk 0:04:56]} 2...
Nf6 {[%clk 0:04:55.6]} 3. Nbd2 {[%clk 0:04:50.5]} 3... g6 {[%clk 0:04:54.2]} 4.
e4 {[%clk 0:04:49.2]} 4... Bg7 {[%clk 0:04:53.2]} 5. Bd3 {[%clk 0:04:47.8]} 5...
Bg4 {[%clk 0:04:49.7]} 6. h3 {[%clk 0:04:44.5]} 6... Bxf3 {[%clk 0:04:48]} 7.
Qxf3 {[%clk 0:04:43]} 7... Nbd7 {[%clk 0:04:47.9]} 8. h4 {[%clk 0:04:27.5]} 8...
c6 {[%clk 0:04:36.2]} 9. h5 {[%clk 0:04:24.8]} 9... Nxh5 {[%clk 0:04:22.2]} 10.
c3 {[%clk 0:04:15.9]} 10... Qc7 {[%clk 0:04:19.9]} 11. g4 {[%clk 0:04:09.4]}
11... Nhf6 {[%clk 0:04:18.6]} 12. g5 {[%clk 0:04:00.9]} 12... Nh5 {[%clk
0:04:16.6]} 13. Nc4 {[%clk 0:03:48.6]} 13... O-O-O {[%clk 0:04:10.8]} 14. Bd2
{[%clk 0:03:44.5]} 14... f6 {[%clk 0:03:57.9]} 15. O-O-O {[%clk 0:03:33.8]}
15... fxg5 {[%clk 0:03:54.6]} 16. Bxg5 {[%clk 0:03:31]} 16... Nhf6 {[%clk
0:03:54.2]} 17. Qh3 {[%clk 0:03:12.3]} 17... Kb8 {[%clk 0:03:49.8]} 18. f4
{[%clk 0:03:10.2]} 18... e5 {[%clk 0:03:43.5]} 19. fxe5 {[%clk 0:02:47.1]} 19...
dxe5 {[%clk 0:03:39.9]} 20. dxe5 {[%clk 0:02:38.8]} 20... Nxe5 {[%clk
0:03:38.5]} 21. Nxe5 {[%clk 0:02:34.3]} 21... Qxe5 {[%clk 0:03:37.2]} 22. Rhf1
{[%clk 0:02:31]} 22... Qxg5+ {[%clk 0:03:29.2]} 23. Kb1 {[%clk 0:02:28.8]} 0-1

[Event "Live Chess"]
[Site "Chess.com"]
[Date "2024.06.02"]
[Round "-"]
[White "chessgoatpawel"]
[Black "Brooms1989"]
[Result "1-0"]
[WhiteElo "2056"]
[BlackElo "1141"]
[TimeControl "300"]
[EndTime "1:40:30 PDT"]
[Termination "chessgoatpawel won by resignation"]

1. e4 {[%clk 0:04:57.8]} 1... e5 {[%clk 0:04:57.9]} 2. Nf3 {[%clk 0:04:56.9]}
2... Nc6 {[%clk 0:04:56.4]} 3. Bb5 {[%clk 0:04:56.3]} 3... a6 {[%clk 0:04:55]}
4. Bxc6 {[%clk 0:04:54.7]} 4... dxc6 {[%clk 0:04:53.8]} 5. O-O {[%clk
0:04:53.3]} 5... Qf6 {[%clk 0:04:51]} 6. c3 {[%clk 0:04:51]} 6... Bg4 {[%clk
0:04:46.3]} 7. d4 {[%clk 0:04:46.4]} 7... Bxf3 {[%clk 0:04:43.2]} 8. Qxf3 {[%clk
0:04:45.1]} 8... Qxf3 {[%clk 0:04:42.4]} 9. gxf3 {[%clk 0:04:45]} 9... exd4
{[%clk 0:04:40.7]} 10. cxd4 {[%clk 0:04:44.9]} 10... O-O-O {[%clk 0:04:39.6]}
11. Be3 {[%clk 0:04:43.5]} 11... Be7 {[%clk 0:04:21]} 12. Nc3 {[%clk 0:04:39.9]}
12... Nh6 {[%clk 0:04:13.7]} 13. Bxh6 {[%clk 0:04:19.7]} 13... gxh6 {[%clk
0:04:11.7]} 14. Rad1 {[%clk 0:04:16.6]} 14... Rhg8+ {[%clk 0:04:08.5]} 15. Kh1
{[%clk 0:04:14.9]} 15... Rg6 {[%clk 0:04:01.5]} 16. Ne2 {[%clk 0:04:09.3]} 16...
Rdg8 {[%clk 0:03:53.1]} 17. Ng3 {[%clk 0:04:06.6]} 17... Bh4 {[%clk 0:03:46.5]}
18. Nf5 {[%clk 0:04:01.8]} 18... Bg5 {[%clk 0:03:34.7]} 19. f4 {[%clk
0:03:53.6]} 19... Bd8 {[%clk 0:03:32.8]} 20. Rg1 {[%clk 0:03:51.5]} 20... Rxg1+
{[%clk 0:03:30]} 21. Rxg1 {[%clk 0:03:51.4]} 21... Rxg1+ {[%clk 0:03:29]} 22.
Kxg1 {[%clk 0:03:50.8]} 22... h5 {[%clk 0:03:27.9]} 23. Kg2 {[%clk 0:03:42.3]}
23... b5 {[%clk 0:03:24.7]} 24. Kf3 {[%clk 0:03:37.1]} 24... Kb7 {[%clk
0:03:17.7]} 25. e5 {[%clk 0:03:33.5]} 25... Kb6 {[%clk 0:03:12.6]} 26. Nh6
{[%clk 0:03:30.9]} 26... f6 {[%clk 0:03:07.3]} 27. e6 {[%clk 0:03:29.2]} 27...
Be7 {[%clk 0:03:06.5]} 28. Ng8 {[%clk 0:03:27.2]} 28... Bf8 {[%clk 0:03:01.8]}
29. e7 {[%clk 0:03:22.7]} 29... Bxe7 {[%clk 0:03:00.7]} 30. Nxe7 {[%clk
0:03:22.6]} 30... c5 {[%clk 0:02:57.9]} 31. Ke4 {[%clk 0:03:06.9]} 31... c4
{[%clk 0:02:51.4]} 32. Nd5+ {[%clk 0:03:04.6]} 32... Kc6 {[%clk 0:02:48.2]} 33.
Nxf6 {[%clk 0:03:04]} 33... b4 {[%clk 0:02:47.3]} 34. Nxh7 {[%clk 0:03:00.5]}
34... c3 {[%clk 0:02:46.1]} 35. bxc3 {[%clk 0:02:59.6]} 35... bxc3 {[%clk
0:02:45.6]} 36. Kd3 {[%clk 0:02:58.9]} 36... c2 {[%clk 0:02:43.8]} 37. Kxc2
{[%clk 0:02:58.4]} 1-0